bitfinex-derivatives/quotes_SOLF0:USTF0_20220101
["timestamp","ask_amount","ask_price","bid_price","bid_amount"]
[1641010282627,12.29084511,172.64,172.61,4.1134296]
[1641010282830,12.29084511,172.65,172.61,4.1134296]
[1641010283630,12.29084511,172.65,172.6,1.22706254]
[1641010284529,12.29084511,172.65,172.61,4.11344194]
[1641010285432,12.29084511,172.65,172.57,43.80012819]
[1641010286031,12.29084511,172.65,172.61,4.11342984]
[1641010286633,12.29084511,172.65,172.57,43.80012819]
[1641010287432,12.29084511,172.65,172.61,4.11345818]
[1641010288033,12.29084511,172.65,172.57,43.80012819]
[1641010288738,12.29084511,172.65,172.6,4.11361099]
[1641010288739,12.29084511,172.64,172.6,4.11361099]
[1641010289435,10.43991722,172.65,172.57,31.4804]
[1641010290438,12.33487948,172.63,172.59,4.11162649]
[1641010291037,12.33487948,172.63,172.57,31.4804]
[1641010291639,12.33487948,172.63,172.59,4.11162405]
[1641010292643,12.33487948,172.63,172.57,31.4804]
[1641010293443,12.33487948,172.63,172.59,4.11162062]
[1641010294546,12.33487948,172.63,172.58,1.22644757]
[1641010294743,12.33487948,172.63,172.57,31.4804]
[1641010295148,12.33487948,172.63,172.59,4.11161729]
[1641010296347,12.33487948,172.63,172.57,31.4804]
[1641010297045,12.33487948,172.63,172.59,4.11162575]
[1641010297846,12.33487948,172.63,172.57,31.4804]
[1641010298045,42.52877948,172.64,172.6,4.1116269]
[1641010298246,12.33487948,172.64,172.6,4.1116269]
[1641010298645,12.33487948,172.64,172.59,4.11162616]
[1641010299746,12.33487948,172.64,172.58,1.22644701]
[1641010299747,12.33487948,172.64,172.57,31.4804]
[1641010299947,12.33487948,172.64,172.6,4.11162202]
[1641010300347,12.33487948,172.64,172.59,4.11163031]
[1641010300848,12.33487948,172.64,172.57,31.4804]
[1641010301046,12.33487948,172.64,172.6,4.11363194]
[1641010301950,12.33487948,172.64,172.57,31.4804]
[1641010302148,12.33487948,172.64,172.58,1.22704157]
[1641010302650,12.33487948,172.64,172.6,4.11364482]
[1641010303249,12.33487948,172.64,172.58,1.22704163]
[1641010303750,12.33487948,172.64,172.6,4.11363769]
[1641010304551,15.33487948,172.64,172.6,4.11363769]
[1641010304750,15.33487948,172.64,172.58,1.2270423]
[1641010304949,12.33487948,172.64,172.58,1.2270423]
[1641010305450,12.33487948,172.62,172.58,4.1138459]
[1641010305850,39.99966948,172.62,172.58,4.1138459]
[1641010306250,27.66479,172.62,172.55,32.2475]
[1641010306452,12.34211116,172.61,172.57,4.11403705]
[1641010306951,27.66479,172.62,172.57,1.22700067]
[1641010307152,3.0,172.6,172.57,1.22700067]
[1641010307352,27.66479,172.62,172.57,1.22700067]
[1641010307550,3.0,172.59,172.57,1.22700067]
[1641010307950,27.66479,172.58,172.57,1.22700067]
[1641010308152,40.00881312,172.58,172.54,4.11467437]
[1641010308551,12.34402312,172.58,172.54,4.11467437]
[1641010309553,34.7693,172.6,172.51,1.22693844]
[1641010309759,34.7693,172.6,172.51,19.56162107]
[1641010310255,12.34397352,172.59,172.55,4.11465784]
[1641010310954,12.34397352,172.59,172.51,19.56162107]
[1641010311555,12.34397352,172.59,172.55,4.11464697]
[1641010312155,40.00876352,172.59,172.51,13.54666663]
[1641010312360,4.09549559,172.58,172.51,5.32243403]
[1641010313558,27.66479,172.59,172.51,5.32243403]
[1641010313759,4.09547623,172.59,172.52,4.09549559]
[1641010314258,31.7693,172.6,172.52,4.09549559]
[1641010315362,4.09553326,172.58,172.52,4.09549559]
[1641010315963,4.09552317,172.59,172.52,4.09549559]
[1641010316865,31.7693,172.6,172.52,4.09549559]
[1641010317866,4.09552898,172.59,172.52,4.09549559]
[1641010318366,31.76031898,172.59,172.52,4.09549559]
[1641010318567,27.66479,172.59,172.52,4.09549559]
[1641010319169,4.09554044,172.58,172.52,4.09549559]
[1641010319667,27.66479,172.59,172.52,4.09549559]
[1641010319868,40.00876352,172.59,172.55,4.09549559]
[1641010320668,12.34397352,172.58,172.54,4.1146991]
[1641010322171,27.66479,172.59,172.51,24.70362869]
[1641010322371,40.00850081,172.59,172.55,4.11457027]
[1641010323175,27.66479,172.59,172.52,1.22693844]
[1641010323374,27.66479,172.59,172.56,4.11447593]
[1641010323975,27.66479,172.59,172.53,4.808]
[1641010324175,40.00821779,172.59,172.55,4.1145478]
[1641010324974,27.66479,172.59,172.51,18.33469025]
[1641010325775,27.66479,172.59,172.55,4.11457105]
[1641010325975,40.00850316,172.59,172.55,4.11457105]
[1641010326779,27.66479,172.59,172.51,19.56163903]
[1641010327682,27.66479,172.59,172.56,4.1145201]
[1641010328483,27.66479,172.59,172.53,33.78524878]
[1641010329081,27.66479,172.59,172.56,4.11451105]
[1641010329281,27.66479,172.59,172.56,9.22551105]
[1641010329482,44.1128603,172.6,172.56,9.22551105]
[1641010330183,12.3435603,172.6,172.56,5.111]
[1641010331182,3.0,172.63,172.59,4.11383311]
[1641010331183,15.34149932,172.63,172.59,4.11383311]
[1641010331783,15.34149932,172.63,172.57,31.84112257]
[1641010331983,15.34149932,172.63,172.58,1.22702726]
[1641010333083,15.34149932,172.63,172.59,4.11380041]
[1641010333584,15.34149932,172.63,172.58,1.22702658]
[1641010334385,15.34149932,172.63,172.59,4.1137914]
[1641010334993,12.34149932,172.63,172.59,4.1137914]
[1641010335785,12.34149932,172.61,172.57,34.72808501]
[1641010336585,4.11391629,172.58,172.57,30.6141]
[1641010336787,4.11391629,172.58,172.54,19.04672819]
[1641010337486,12.34181612,172.61,172.57,5.34095072]
[1641010338386,30.66479,172.63,172.55,1.22701129]
[1641010339188,30.66479,172.63,172.54,15.407]
[1641010339389,12.34186578,172.61,172.57,4.11395526]
[1641010339791,13.44071683,172.62,172.54,8.68]
[1641010339989,10.44071683,172.62,172.55,1.22700464]
[1641010340990,12.34204501,172.61,172.57,4.114015]
[1641010341590,10.44071683,172.62,172.55,1.22699709]
[1641010342794,12.34225993,172.61,172.57,4.11408664]
[1641010343395,12.34226312,172.62,172.58,4.11408771]
[1641010344598,15.34226312,172.62,172.56,29.9382]
[1641010344796,3.0,172.6,172.54,27.01444562]
[1641010344997,30.7939,172.61,172.54,27.01444562]
[1641010345400,30.7939,172.61,172.56,4.11448374]
[1641010345401,12.34226312,172.6,172.56,4.11448374]
[1641010345998,12.34226312,172.6,172.54,8.68]
[1641010346602,40.00705312,172.6,172.54,8.68]
[1641010347403,40.00705312,172.6,172.56,4.11450619]
[1641010348006,40.00705312,172.6,172.52,19.56139772]
[1641010348705,40.00705312,172.6,172.56,4.11455105]
[1641010349306,40.00705312,172.6,172.52,19.56139772]
[1641010350405,40.00705312,172.6,172.52,13.54668029]
[1641010350707,12.34226312,172.59,172.55,4.1145652]
[1641010351006,12.34226312,172.59,172.52,1.2269521]
[1641010351807,15.34226312,172.59,172.55,4.11460873]
[1641010352308,3.0,172.57,172.55,4.11460873]
[1641010352509,9.059,172.57,172.55,4.11460873]
[1641010352707,27.66479,172.56,172.55,4.11460873]
[1641010353107,27.66479,172.56,172.51,12.31972819]
[1641010353309,40.00705312,172.56,172.52,5.34205903]
[1641010353508,43.00705312,172.56,172.52,5.34205903]
[1641010354109,40.00705312,172.56,172.52,5.34205903]
[1641010354308,43.00705312,172.56,172.52,5.34205903]
[1641010354509,30.66479,172.56,172.48,44.28272819]
[1641010354709,62.12579,172.56,172.48,44.28272819]
[1641010355110,62.12579,172.56,172.51,4.11558961]
[1641010355312,12.34676884,172.55,172.51,4.11558961]
[1641010356014,12.34676884,172.54,172.5,4.11574539]
[1641010356615,4.11573659,172.51,172.48,31.963]
[1641010356813,4.11573659,172.51,172.49,1.22683222]
[1641010357612,5.854,172.52,172.47,12.31972819]
[1641010357813,5.854,172.52,172.5,4.11579377]
[1641010358014,12.34738132,172.54,172.5,4.11579377]
[1641010358415,13.44760104,172.55,172.46,19.56195455]
[1641010358615,10.44760104,172.55,172.46,19.56195455]
[1641010358815,3.0,172.53,172.46,19.56195455]
[1641010359015,27.66479,172.52,172.46,19.56195455]
[1641010359215,27.66479,172.52,172.46,13.54655469]
[1641010359515,27.66479,172.52,172.49,4.1159614]
[1641010360515,3.0,172.51,172.46,1.2268265]
[1641010360918,30.66479,172.52,172.46,1.2268265]
[1641010361515,27.66479,172.52,172.46,1.2268265]
[1641010361717,27.66479,172.52,172.47,4.11663612]
[1641010361920,12.34990837,172.51,172.47,4.11663612]
[1641010363520,12.34990837,172.51,172.46,1.22674589]
[1641010363820,12.34990837,172.51,172.47,4.11659525]
[1641010364524,12.34990837,172.51,172.46,1.22674633]
[1641010365527,12.34990837,172.5,172.46,4.11671368]
[1641010366331,58.37779,172.52,172.44,1.22673451]
[1641010366527,12.35004594,172.51,172.47,4.11668198]
[1641010367128,58.37779,172.52,172.48,4.11662123]
[1641010367329,40.01465368,172.52,172.48,4.11662123]
[1641010368031,40.01465368,172.52,172.45,32.1925]
[1641010368332,12.34986368,172.51,172.47,4.11669991]
[1641010368831,3.0,172.53,172.46,1.22673646]
[1641010369733,12.35007259,172.51,172.47,4.11669086]
[1641010370334,27.66479,172.52,172.46,1.22673485]
[1641010370935,30.66479,172.52,172.46,1.22673485]
[1641010371134,12.3501078,172.51,172.47,4.1167026]
[1641010371834,30.66479,172.52,172.46,1.22673608]
[1641010372436,3.0,172.47,172.46,1.22673608]
[1641010372635,4.635,172.47,172.43,39.98451819]
[1641010373939,4.11732472,172.44,172.43,27.66479]
[1641010374737,4.635,172.47,172.43,27.66479]
[1641010375339,4.635,172.47,172.41,29.4937]
[1641010375737,4.11717103,172.44,172.41,29.4937]
[1641010375939,4.11717103,172.44,172.4,12.31972819]
[1641010376441,4.11717103,172.44,172.43,27.66479]
[1641010376640,7.635,172.47,172.43,27.66479]
[1641010377542,4.11719869,172.44,172.43,27.66479]
[1641010378140,3.0,172.47,172.43,27.66479]
[1641010378341,12.3516231,172.48,172.43,27.66479]
[1641010378943,4.11722512,172.44,172.43,27.66479]
[1641010379444,9.47622512,172.44,172.43,27.66479]
[1641010379642,5.359,172.44,172.43,27.66479]
[1641010380242,9.47618519,172.44,172.43,27.66479]
[1641010381144,4.11720519,172.45,172.43,27.66479]
[1641010381644,3.0,172.48,172.43,27.66479]
[1641010381842,37.63155601,172.49,172.43,27.66479]
[1641010382043,34.63155601,172.49,172.43,27.66479]
[1641010382244,37.63155601,172.49,172.43,27.66479]
[1641010382444,3.0,172.48,172.43,27.66479]
[1641010383545,34.63155601,172.49,172.43,27.66479]
[1641010383745,2.42476624,172.48,172.43,27.66479]
[1641010387349,4.08875601,172.44,172.43,27.66479]
[1641010388149,4.08875601,172.46,172.43,27.66479]
[1641010388649,4.08875601,172.46,172.42,12.31972819]
[1641010389149,4.08875601,172.46,172.43,27.66479]
[1641010389351,4.08875601,172.46,172.43,33.18179]
[1641010389551,4.08875601,172.46,172.44,1.22666151]
[1641010390350,4.08875601,172.46,172.45,4.11720369]
[1641010390950,42.89441556,172.49,172.45,4.11720369]
[1641010391152,12.35161556,172.49,172.45,4.11720369]
[1641010391849,2.42476624,172.5,172.44,1.22666151]
[1641010391850,14.7763818,172.5,172.46,4.11720369]
[1641010392649,12.35161556,172.5,172.46,4.11720369]
[1641010392851,12.35161556,172.5,172.47,0.57523376]
[1641010393051,12.35161556,172.5,172.47,5.949]
[1641010393251,60.52802917,172.54,172.49,0.57523376]
[1641010393451,32.86323917,172.54,172.47,36.61379]
[1641010393654,32.86323917,172.56,172.53,0.57523376]
[1641010393852,32.86323917,172.56,172.53,6.87823376]
[1641010394051,32.86323917,172.56,172.54,0.57523376]
[1641010394656,10.44495871,172.58,172.54,0.57523376]
[1641010395453,10.44495871,172.58,172.53,4.11720369]
[1641010396056,43.30819788,172.6,172.55,0.57523376]
[1641010396854,10.44495871,172.6,172.55,0.57523376]
[1641010402561,10.44495871,172.6,172.59,0.57523376]
[1641010402961,10.44495871,172.6,172.58,0.57523376]
[1641010403763,10.44495871,172.63,172.58,0.57523376]
[1641010403963,10.44495871,172.63,172.56,4.11720369]
[1641010404363,10.44495871,172.63,172.58,4.69243745]
[1641010404765,10.44495871,172.63,172.59,0.57523376]
[1641010405064,43.30819788,172.65,172.59,0.57523376]
[1641010405566,43.30819788,172.65,172.57,4.11720369]
[1641010405965,10.44495871,172.65,172.58,4.11720369]
[1641010406166,10.44495871,172.65,172.61,0.57523376]
[1641010407167,60.52802917,172.66,172.61,0.57523376]
[1641010407367,27.66479,172.66,172.59,0.57523376]
[1641010408465,27.66479,172.66,172.56,27.66479]
[1641010408666,27.66479,172.66,172.6,0.57523376]
[1641010411469,43.30297097,172.65,172.6,0.57523376]
[1641010411968,43.30297097,172.65,172.57,4.11720369]
[1641010412268,27.66479,172.62,172.59,0.57523376]
[1641010413268,27.66479,172.62,172.57,4.11720369]
[1641010413469,27.66479,172.62,172.6,0.57523376]
[1641010414071,27.66479,172.62,172.57,4.11720369]
[1641010414272,27.66479,172.62,172.58,0.57523376]
[1641010414471,27.66479,172.62,172.57,4.11720369]
[1641010414672,32.25579,172.62,172.57,4.11720369]
[1641010415074,10.44085449,172.61,172.56,5.9201377]
[1641010415872,10.44085449,172.61,172.53,4.11510385]
[1641010415873,6.42476624,172.57,172.53,4.11510385]
[1641010416072,6.42476624,172.57,172.43,49.32428579]
[1641010416073,6.42476624,172.54,172.4,49.32428579]
[1641010416276,2.42476624,172.41,172.4,49.32428579]
[1641010416472,6.854,172.41,172.4,4.58303579]
[1641010416672,6.854,172.41,172.35,82.20714298]
[1641010416673,9.27876624,172.41,172.35,82.20714298]
[1641010416873,2.42476624,172.37,172.35,82.20714298]
[1641010417073,6.862,172.37,172.29,0.57523376]
[1641010417275,6.862,172.37,172.26,5.79626141]
[1641010417474,6.862,172.37,172.32,0.57523376]
[1641010417676,6.862,172.37,172.26,5.79626141]
[1641010418174,27.66479,172.35,172.29,0.57523376]
[1641010419079,27.66479,172.35,172.26,5.79626141]
[1641010419278,27.66479,172.35,172.27,0.57523376]
[1641010419483,2.42476624,172.34,172.26,6.37149517]
[1641010419679,27.66479,172.35,172.26,5.79626141]
[1641010419881,5.8001276,172.34,172.25,0.57523376]
[1641010420080,27.66479,172.3,172.23,5.99931764]
[1641010420283,33.07179,172.3,172.26,0.57523376]
[1641010420683,33.07179,172.3,172.24,0.57523376]
[1641010422084,27.66479,172.27,172.24,0.57523376]
[1641010422285,27.66479,172.27,172.2,5.99931764]
[1641010422484,27.66479,172.27,172.22,0.57523376]
[1641010422686,27.66479,172.27,172.23,0.57523376]
[1641010422890,27.66479,172.27,172.2,5.99931764]
[1641010423187,27.66479,172.27,172.22,0.57523376]
[1641010423387,27.66479,172.27,172.2,5.99931764]
[1641010423588,27.66479,172.27,172.21,0.57523376]
[1641010423988,27.66479,172.27,172.22,0.57523376]
[1641010424391,27.66479,172.27,172.26,0.57523376]
[1641010425390,27.66479,172.27,172.2,18.36450907]
[1641010425391,27.66479,172.27,172.23,0.57523376]
[1641010425589,27.66479,172.27,172.2,18.36450907]
[1641010425990,27.66479,172.27,172.22,0.57523376]
[1641010426190,27.66479,172.27,172.24,0.57523376]
[1641010426591,27.66479,172.27,172.21,12.36519143]
[1641010427493,27.66479,172.27,172.23,0.57523376]
[1641010428394,27.66479,172.27,172.25,0.57523376]
[1641010428595,27.66479,172.27,172.21,12.36519143]
[1641010429196,27.66479,172.27,172.22,0.57523376]
[1641010429996,27.66479,172.27,172.25,0.57523376]
[1641010430196,27.66479,172.27,172.21,12.36519143]
[1641010430698,27.66479,172.27,172.23,0.57523376]
[1641010430998,27.66479,172.27,172.22,0.57523376]
[1641010431397,27.66479,172.27,172.21,12.36519143]
[1641010431595,27.66479,172.27,172.21,12.94042519]
[1641010432296,27.66479,172.27,172.22,0.57523376]
[1641010432497,27.66479,172.27,172.24,0.57523376]
[1641010432796,27.66479,172.27,172.21,12.36519143]
[1641010433199,27.66479,172.27,172.2,18.36450907]
[1641010433696,27.66479,172.27,172.24,0.57523376]
[1641010433896,40.02998143,172.27,172.19,40.02998143]
[1641010434096,40.02998143,172.27,172.22,0.57523376]
[1641010434697,42.45474767,172.27,172.21,0.57523376]
[1641010435098,5.80298854,172.26,172.2,0.57523376]
[1641010435298,12.89675478,172.26,172.2,0.57523376]
[1641010435598,10.47198854,172.26,172.2,0.57523376]
[1641010436397,27.66479,172.23,172.21,3.0]
[1641010436597,5.80298854,172.26,172.22,3.57523376]
[1641010436797,5.80147357,172.3,172.25,3.0]
[1641010436998,5.80147357,172.3,172.25,0.57523376]
[1641010437298,12.36519143,172.28,172.25,0.57523376]
[1641010437499,12.36519143,172.28,172.22,5.899]
[1641010437698,12.36519143,172.28,172.26,0.57523376]
[1641010437899,12.36519143,172.28,172.2,12.36519143]
[1641010438200,12.36519143,172.28,172.25,0.57523376]
[1641010438401,27.66479,172.26,172.22,0.57523376]
[1641010438601,33.46761017,172.26,172.22,0.57523376]
[1641010439001,27.66479,172.26,172.25,0.57523376]
[1641010439203,27.66479,172.26,172.25,6.55623376]
[1641010439400,27.66479,172.26,172.25,5.981]
[1641010440401,40.02998143,172.26,172.25,0.57523376]
[1641010440603,40.02998143,172.26,172.18,21.36501671]
[1641010440804,40.02998143,172.26,172.18,18.36501671]
[1641010441003,50.0328016,172.26,172.22,0.57523376]
[1641010441202,50.0328016,172.26,172.18,18.36501671]
[1641010441406,50.0328016,172.26,172.21,0.57523376]
[1641010441604,37.66761017,172.26,172.21,0.57523376]
[1641010441803,37.66761017,172.26,172.19,12.36519143]
[1641010442403,27.66479,172.23,172.21,0.57523376]
[1641010442604,33.69279,172.23,172.17,12.36519143]
[1641010443004,33.69279,172.23,172.21,0.57523376]
[1641010443404,33.69279,172.23,172.22,0.57523376]
[1641010443607,27.66479,172.23,172.22,0.57523376]
[1641010443805,27.66479,172.23,172.18,0.57523376]
[1641010444005,33.04379,172.23,172.18,0.57523376]
[1641010444407,27.66479,172.2,172.16,12.36519143]
[1641010444806,27.66479,172.2,172.15,18.36501671]
[1641010445805,5.80568376,172.18,172.15,18.36501671]
[1641010446008,10.16468376,172.18,172.15,18.36501671]
[1641010446307,27.66479,172.16,172.15,18.36501671]
[1641010446507,27.66479,172.16,172.14,12.36519143]
[1641010447505,27.66479,172.16,172.1,31.74696329]
[1641010447706,8.80720093,172.15,172.1,11.09456329]
[1641010447906,3.0,172.14,172.09,12.37428301]
[1641010448106,7.614,172.14,172.09,12.37428301]
[1641010448307,27.66479,172.1,172.09,12.37428301]
[1641010448508,60.34058,172.1,172.09,12.37428301]
[1641010449306,60.34058,172.1,172.05,15.84558954]
[1641010449506,60.34058,172.1,172.05,9.84463952]
[1641010449710,5.8097313,172.06,171.98,9.84463952]
[1641010450011,11.1357313,172.06,171.94,47.30759656]
[1641010450207,14.1357313,172.06,171.94,41.30759656]
[1641010450408,27.66479,171.95,171.94,41.30759656]
[1641010450607,32.73279,171.95,171.89,3.0]
[1641010450807,32.73279,171.95,171.88,3.0]
[1641010451007,5.068,171.95,171.85,30.4666]
[1641010451211,6.867,171.99,171.93,3.0]
[1641010451411,5.8097313,172.06,171.88,3.0]
[1641010451607,5.8097313,172.06,171.96,3.0]
[1641010451809,5.8097313,172.06,171.99,3.0]
[1641010452008,5.8097313,172.06,171.95,3.0]
[1641010452207,5.8097313,172.06,171.96,3.0]
[1641010452409,27.66479,172.03,171.96,3.0]
[1641010452609,27.66479,172.03,171.95,3.0]
[1641010453009,27.66479,172.03,171.96,3.0]
[1641010453309,27.66479,172.06,172.01,3.0]
[1641010453508,5.80821281,172.1,171.96,7.495]
[1641010453708,5.80821281,172.1,172.02,3.0]
[1641010453916,5.80956254,172.06,171.98,3.0]
[1641010454109,10.16056254,172.06,171.97,3.0]
[1641010454508,27.66479,172.05,171.97,3.0]
[1641010455912,3.30254732,172.04,171.97,3.0]
[1641010456113,3.30254732,172.04,171.98,1.21480923]
[1641010456311,3.30254732,172.04,171.98,4.21480923]
[1641010456512,3.30254732,172.04,171.98,1.21480923]
[1641010457012,27.66479,172.05,171.98,1.21480923]
[1641010458314,3.30257753,172.04,171.98,1.21480923]
[1641010458516,27.66479,172.02,171.98,1.21480923]
[1641010458713,27.66479,172.02,171.98,4.21480923]
[1641010459114,27.66479,172.02,171.98,1.21480923]
[1641010459414,33.25379,172.02,171.99,1.21480923]
[1641010460216,33.25379,172.02,171.98,4.21480923]
[1641010460512,27.66479,171.99,171.98,1.21480923]
[1641010461514,27.66479,171.99,171.96,1.21480923]
[1641010462314,27.66479,171.99,171.98,3.0]
[1641010462715,27.66479,171.99,171.95,3.0]
[1641010462914,32.53779,171.99,171.95,3.0]
[1641010463313,32.53779,171.99,171.96,4.21480923]
[1641010464015,32.53779,171.99,171.97,1.21480923]
[1641010464217,27.66479,171.99,171.97,1.21480923]
[1641010466018,27.66479,171.99,171.96,1.21480923]
[1641010466220,32.43379,171.99,171.96,1.21480923]
[1641010466520,32.43379,171.99,171.93,1.21480923]
[1641010467319,32.43379,171.99,171.91,1.21480923]
[1641010468119,32.43379,171.99,171.89,60.07869]
[1641010468120,32.43379,171.99,171.9,7.20652092]
[1641010468520,27.66479,171.95,171.9,7.20652092]
[1641010468722,34.00479,171.95,171.9,7.20652092]
[1641010469224,34.00479,171.95,171.92,3.0]
[1641010469422,34.00479,171.95,171.9,7.20652092]
[1641010469824,34.00479,171.95,171.9,1.21480923]
[1641010470924,34.00479,171.95,171.89,1.21480923]
[1641010471327,27.66479,171.95,171.89,1.21480923]
[1641010471527,27.66479,171.95,171.88,1.21480923]
[1641010471730,27.66479,171.95,171.89,3.0]
[1641010472126,27.66479,171.95,171.9,3.0]
[1641010472426,27.66479,171.95,171.9,1.21480923]
[1641010473027,27.66479,171.95,171.9,5.65280923]
[1641010474029,27.66479,171.95,171.9,1.21480923]
[1641010474230,27.66479,171.95,171.93,3.0]
[1641010474430,27.66479,171.99,171.93,3.0]
[1641010474733,27.66479,171.99,171.93,27.66479]
[1641010474930,27.66479,171.99,171.93,30.66479]
[1641010475431,27.66479,171.99,171.94,4.21480923]
[1641010475633,27.66479,171.99,171.94,1.21480923]
[1641010476233,27.66479,171.99,171.98,4.12807487]
[1641010478839,27.66479,171.99,171.95,12.38410161]
[1641010479236,32.30779,171.99,171.95,12.38410161]
[1641010480239,32.30779,171.99,171.98,4.12815546]
[1641010480837,32.30779,171.99,171.95,12.38410161]
[1641010481236,27.66479,171.99,171.95,12.38410161]
[1641010482238,27.66479,171.99,171.95,13.59891084]
[1641010482440,33.34079,171.99,171.95,13.59891084]
[1641010482838,33.34079,171.99,171.96,12.38410161]
[1641010483644,33.34079,171.99,171.97,4.12850015]
[1641010484442,27.66479,171.99,171.97,4.12850015]
[1641010486645,55.32958,171.99,171.97,4.12850015]
[1641010487745,55.32958,171.99,171.96,4.12850015]
[1641010487947,61.49558,171.99,171.96,4.12850015]
[1641010488346,61.49558,171.99,171.95,4.12850015]
[1641010488347,73.87968161,171.99,171.95,4.12850015]
[1641010488746,27.66479,171.96,171.95,4.12850015]
[1641010492049,27.66479,171.96,171.94,4.12850015]
[1641010493352,4.12889005,171.95,171.94,4.12850015]
[1641010493552,8.51689005,171.95,171.94,4.12850015]
[1641010494053,8.51689005,171.95,171.91,12.38410161]
[1641010496354,4.12889005,171.95,171.91,15.38410161]
[1641010496553,12.38410161,171.99,171.94,7.12897992]
[1641010496755,12.38410161,171.99,171.97,3.0]
[1641010496954,12.38410161,171.99,171.95,3.0]
[1641010497153,12.38410161,171.99,171.94,30.66479]
[1641010497354,27.66479,172.03,171.98,1.21480923]
[1641010498558,12.38410161,172.02,171.94,19.59062253]
[1641010499256,12.38410161,172.02,171.94,13.59891084]
[1641010499462,27.66479,172.03,171.94,1.21480923]
[1641010501262,33.47536525,172.03,171.96,12.38410161]
[1641010501860,27.66479,172.03,171.96,12.38410161]
[1641010502262,12.38410161,172.01,171.94,1.21480923]
[1641010503160,12.38410161,172.02,171.94,19.59105563]
[1641010504160,12.38410161,172.02,171.94,1.21480923]
[1641010504161,12.38410161,172.01,171.94,1.21480923]
[1641010505062,27.66479,171.99,171.93,31.0647]
[1641010505363,27.66479,171.99,171.92,12.38410161]
[1641010505861,27.66479,171.99,171.94,1.21501581]
[1641010506965,3.0,171.98,171.93,12.38410161]
[1641010507163,43.17488497,171.99,171.93,12.38410161]
[1641010507564,40.17488497,171.99,171.93,12.38410161]
[1641010507764,12.38410161,171.98,171.9,19.5914003]
[1641010508565,27.66479,171.99,171.91,12.38410161]
[1641010509065,30.66479,171.99,171.91,12.38410161]
[1641010509365,27.66479,171.99,171.93,12.38410161]
[1641010509966,27.66479,171.99,171.92,12.38410161]
[1641010510467,27.66479,171.99,171.93,12.38410161]
[1641010511466,27.66479,171.99,171.92,12.38410161]
[1641010512067,27.66479,171.99,171.93,12.38410161]
[1641010512266,22.76187491,171.99,171.93,12.38410161]
[1641010514669,22.76187491,171.99,171.93,15.38410161]
[1641010514868,12.38410161,172.01,171.94,3.0]
[1641010515070,12.38410161,172.02,171.96,27.66479]
[1641010515467,12.38410161,172.02,171.96,30.66479]
[1641010515669,12.38410161,172.02,171.97,3.0]
[1641010515872,12.38410161,172.02,171.97,8.258]
[1641010516469,12.38410161,172.02,171.99,3.0]
[1641010516871,33.02915043,172.06,171.99,3.0]
[1641010517070,33.02915043,172.06,172.0,27.66479]
[1641010517469,12.38176552,172.06,172.0,27.66479]
[1641010518271,60.69394043,172.09,172.0,27.66479]
[1641010518873,27.66479,172.09,172.01,1.21501904]
[1641010519574,27.66479,172.09,172.01,7.96001904]
[1641010520377,30.66479,172.09,172.02,1.21501904]
[1641010521174,30.66479,172.09,172.01,1.21501904]
[1641010521574,27.66479,172.09,172.01,1.21501904]
[1641010522376,30.66479,172.09,172.01,1.21501904]
[1641010522977,27.66479,172.09,172.01,1.21501904]
[1641010524276,27.66479,172.09,172.01,7.20780961]
[1641010524477,27.66479,172.09,172.02,3.0]
[1641010524879,27.66479,172.09,172.03,1.21501904]
[1641010525878,27.66479,172.09,172.01,13.58879057]
[1641010525879,27.66479,172.12,172.02,1.21501904]
[1641010526881,33.02915043,172.15,172.05,3.0]
[1641010527077,33.02915043,172.15,172.05,9.146]
[1641010527581,35.46774124,172.2,172.09,27.66479]
[1641010527582,33.02915043,172.17,172.09,27.66479]
[1641010527780,33.02915043,172.17,172.09,33.99479]
[1641010528681,33.02915043,172.17,172.1,1.21501904]
[1641010528682,10.50981741,172.17,172.1,1.21501904]
[1641010529682,27.66479,172.15,172.1,1.21501904]
[1641010530885,27.66479,172.15,172.08,1.21501904]
[1641010531487,4.787,172.17,172.08,1.21501904]
[1641010531986,60.69394043,172.18,172.08,1.21501904]
[1641010532385,3.0,172.17,172.08,1.21501904]
[1641010532586,3.0,172.15,172.08,1.21501904]
[1641010533086,3.0,172.15,172.07,59.08969]
[1641010533287,33.02915043,172.15,172.07,27.66479]
[1641010533588,27.66479,172.14,172.07,27.66479]
[1641010534587,10.50847011,172.13,172.07,27.66479]
[1641010536091,10.50847011,172.13,172.07,30.66479]
[1641010536692,10.50847011,172.13,172.07,27.66479]